[Event "Late-Titled-Tuesday-Blitz-June-18-2024"]
[Site "Chess.com"]
[Date "2024.06.18"]
[Round "2"]
[White "Chessbard1972"]
[Black "tgpgoat"]
[Result "0-1"]
[WhiteElo "2283"]
[BlackElo "2506"]
[TimeControl "180+1"]
[EndTime "14:17:18 PDT"]
[Termination "tgpgoat won by resignation"]

1. e4 {[%clk 0:03:00.9]} 1... c5 {[%clk 0:03:00]} 2. d4 {[%clk 0:02:59.6]} 2...
cxd4 {[%clk 0:02:59.8]} 3. c3 {[%clk 0:03:00.1]} 3... dxc3 {[%clk 0:03:00.7]} 4.
Nxc3 {[%clk 0:02:59.8]} 4... Nc6 {[%clk 0:03:01.4]} 5. Bc4 {[%clk 0:02:59.8]}
5... e6 {[%clk 0:03:01.5]} 6. Bf4 {[%clk 0:02:59.5]} 6... a6 {[%clk 0:02:57.7]}
7. a4 {[%clk 0:02:58.8]} 7... d6 {[%clk 0:02:57.2]} 8. Nf3 {[%clk 0:02:57.8]}
8... Nf6 {[%clk 0:02:57.3]} 9. O-O {[%clk 0:02:56.9]} 9... Be7 {[%clk
0:02:57.6]} 10. Qe2 {[%clk 0:02:56.6]} 10... O-O {[%clk 0:02:57.6]} 11. Rfd1
{[%clk 0:02:55.6]} 11... Qc7 {[%clk 0:02:56.1]} 12. e5 {[%clk 0:02:49.6]} 12...
dxe5 {[%clk 0:02:45.3]} 13. Nxe5 {[%clk 0:02:49.3]} 13... Bd6 {[%clk 0:02:39.2]}
14. Rxd6 {[%clk 0:02:33.6]} 14... Qxd6 {[%clk 0:02:35.9]} 15. Ng6 {[%clk
0:02:33.3]} 15... e5 {[%clk 0:01:58.3]} 16. Nxe5 {[%clk 0:02:16.7]} 16... Nxe5
{[%clk 0:01:57.7]} 17. Bxe5 {[%clk 0:02:16.6]} 17... Qe7 {[%clk 0:01:57.9]} 18.
Re1 {[%clk 0:02:01.5]} 18... Be6 {[%clk 0:01:44.5]} 19. Bg3 {[%clk 0:01:40.3]}
19... Rfe8 {[%clk 0:01:30.7]} 20. Bh4 {[%clk 0:01:35.8]} 20... Rad8 {[%clk
0:01:03]} 21. Nd5 {[%clk 0:01:27.2]} 21... Bxd5 {[%clk 0:00:54.4]} 22. Qxe7
{[%clk 0:01:15.6]} 22... Rxe7 {[%clk 0:00:52.2]} 23. Rxe7 {[%clk 0:01:15.5]}
23... Bxc4 {[%clk 0:00:52.8]} 24. h3 {[%clk 0:01:10]} 24... Bd5 {[%clk
0:00:52.2]} 25. Bxf6 {[%clk 0:01:06.9]} 25... gxf6 {[%clk 0:00:53.1]} 26. f3
{[%clk 0:01:06.3]} 26... Bc6 {[%clk 0:00:52.3]} 27. a5 {[%clk 0:01:05.5]} 27...
Rd5 {[%clk 0:00:51.5]} 28. b4 {[%clk 0:01:04.9]} 28... Rd4 {[%clk 0:00:51.6]}
29. b5 {[%clk 0:00:57.9]} 29... axb5 {[%clk 0:00:52.5]} 30. Rc7 {[%clk
0:00:56.9]} 30... Ra4 {[%clk 0:00:51.2]} 31. Rc8+ {[%clk 0:00:56.2]} 31... Kg7
{[%clk 0:00:50.1]} 32. Ra8 {[%clk 0:00:57.1]} 32... b4 {[%clk 0:00:49.3]} 33.
Kf2 {[%clk 0:00:56.7]} 33... b3 {[%clk 0:00:49.8]} 0-1

[Event "Late-Titled-Tuesday-Blitz-June-18-2024"]
[Site "Chess.com"]
[Date "2024.06.18"]
[Round "2"]
[White "bob1263"]
[Black "Hirna2005"]
[Result "1-0"]
[WhiteElo "2510"]
[BlackElo "2285"]
[TimeControl "180+1"]
[EndTime "14:17:22 PDT"]
[Termination "bob1263 won by resignation"]

1. d4 {[%clk 0:03:00.9]} 1... g6 {[%clk 0:03:00.4]} 2. c4 {[%clk 0:02:59.7]}
2... Bg7 {[%clk 0:03:01]} 3. Nc3 {[%clk 0:02:58.1]} 3... d6 {[%clk 0:03:01.5]}
4. e4 {[%clk 0:02:57.7]} 4... Nc6 {[%clk 0:03:02.1]} 5. Be3 {[%clk 0:02:56]}
5... e5 {[%clk 0:03:02.1]} 6. d5 {[%clk 0:02:55.2]} 6... Nce7 {[%clk 0:03:02.3]}
7. g4 {[%clk 0:02:53.5]} 7... f5 {[%clk 0:03:02.5]} 8. f3 {[%clk 0:02:52.5]}
8... Nf6 {[%clk 0:02:59]} 9. h3 {[%clk 0:02:51.4]} 9... c6 {[%clk 0:02:55.5]}
10. Qd2 {[%clk 0:02:46.9]} 10... cxd5 {[%clk 0:02:55.3]} 11. cxd5 {[%clk
0:02:46.2]} 11... Qa5 {[%clk 0:02:50.4]} 12. O-O-O {[%clk 0:02:29.5]} 12... Bd7
{[%clk 0:02:49.7]} 13. Kb1 {[%clk 0:02:28.2]} 13... Rc8 {[%clk 0:02:47.3]} 14.
Nge2 {[%clk 0:02:26.5]} 14... O-O {[%clk 0:02:43.1]} 15. Nc1 {[%clk 0:02:25.3]}
15... b5 {[%clk 0:02:29.9]} 16. Nb3 {[%clk 0:02:18.5]} 16... Qc7 {[%clk
0:02:20.8]} 17. Bxb5 {[%clk 0:02:10.2]} 17... fxe4 {[%clk 0:02:08.2]} 18. Bxd7
{[%clk 0:02:05.9]} 18... Nxd7 {[%clk 0:02:08.4]} 19. fxe4 {[%clk 0:02:05.4]}
19... Rf3 {[%clk 0:02:05.2]} 20. Rc1 {[%clk 0:01:59.3]} 20... Rcf8 {[%clk
0:01:56.4]} 21. Nb5 {[%clk 0:01:56.1]} 21... Qb8 {[%clk 0:01:56.5]} 22. Nxa7
{[%clk 0:01:50.7]} 22... Nc5 {[%clk 0:01:47.7]} 23. Bxc5 {[%clk 0:00:59.2]}
23... dxc5 {[%clk 0:01:42.7]} 24. Nc6 {[%clk 0:00:58.4]} 24... Nxc6 {[%clk
0:01:39.2]} 25. dxc6 {[%clk 0:00:57.5]} 25... Rf2 {[%clk 0:01:28.9]} 26. Qd5+
{[%clk 0:00:56.4]} 26... Kh8 {[%clk 0:01:28.2]} 27. Rxc5 {[%clk 0:00:56]} 27...
Re2 {[%clk 0:01:16.3]} 28. c7 {[%clk 0:00:55.1]} 28... Qb4 {[%clk 0:01:09.7]}
29. Rd1 {[%clk 0:00:52.1]} 29... h5 {[%clk 0:01:02.4]} 30. c8=Q {[%clk
0:00:50.8]} 30... Rxc8 {[%clk 0:00:59.7]} 31. Rxc8+ {[%clk 0:00:50]} 31... Kh7
{[%clk 0:01:00.2]} 32. Qc4 {[%clk 0:00:47.2]} 32... Qb7 {[%clk 0:00:57.3]} 33.
Qxe2 {[%clk 0:00:46.2]} 1-0

[Event "Late-Titled-Tuesday-Blitz-June-18-2024"]
[Site "Chess.com"]
[Date "2024.06.18"]
[Round "2"]
[White "FairChess_on_YouTube"]
[Black "Korchmar_Vasiliy"]
[Result "1-0"]
[WhiteElo "3099"]
[BlackElo "2643"]
[TimeControl "180+1"]
[EndTime "14:17:24 PDT"]
[Termination "FairChess_on_YouTube won by resignation"]

1. d4 {[%clk 0:03:00.9]} 1... d5 {[%clk 0:02:59.4]} 2. c4 {[%clk 0:03:01.2]}
2... c6 {[%clk 0:02:59.1]} 3. Nf3 {[%clk 0:03:00.8]} 3... Nf6 {[%clk 0:02:59.3]}
4. Nc3 {[%clk 0:03:00.9]} 4... a6 {[%clk 0:02:58.2]} 5. h3 {[%clk 0:02:58.1]}
5... e6 {[%clk 0:02:53]} 6. c5 {[%clk 0:02:53]} 6... b6 {[%clk 0:02:40]} 7. cxb6
{[%clk 0:02:53]} 7... Qxb6 {[%clk 0:02:40.9]} 8. Na4 {[%clk 0:02:51.1]} 8... Qc7
{[%clk 0:02:35]} 9. e3 {[%clk 0:02:48.4]} 9... a5 {[%clk 0:02:31.8]} 10. Bd2
{[%clk 0:02:47.3]} 10... Bd6 {[%clk 0:02:28.8]} 11. Rc1 {[%clk 0:02:46.8]} 11...
O-O {[%clk 0:02:29.1]} 12. Be2 {[%clk 0:02:46.8]} 12... Ba6 {[%clk 0:02:27.6]}
13. O-O {[%clk 0:02:46.9]} 13... Ne4 {[%clk 0:02:21.2]} 14. Rc2 {[%clk
0:02:45.2]} 14... Rc8 {[%clk 0:02:06.8]} 15. b3 {[%clk 0:02:44.9]} 15... Bxe2
{[%clk 0:01:58.7]} 16. Qxe2 {[%clk 0:02:44.7]} 16... Nd7 {[%clk 0:01:56.5]} 17.
Rfc1 {[%clk 0:02:44.2]} 17... Qb7 {[%clk 0:01:56.5]} 18. Qe1 {[%clk 0:02:43.1]}
18... Qb5 {[%clk 0:01:43.5]} 19. Qf1 {[%clk 0:02:41.2]} 19... Qb7 {[%clk
0:01:39.3]} 20. Qe1 {[%clk 0:02:39.9]} 20... Qb5 {[%clk 0:01:39.2]} 21. Qf1
{[%clk 0:02:40.3]} 21... Qb7 {[%clk 0:01:39]} 22. Be1 {[%clk 0:02:40.9]} 22...
Ba3 {[%clk 0:01:34.7]} 23. Rd1 {[%clk 0:02:41.2]} 23... Bd6 {[%clk 0:01:33.6]}
24. Nd2 {[%clk 0:02:40.6]} 24... Nef6 {[%clk 0:01:23.2]} 25. Rdc1 {[%clk
0:02:34.1]} 25... Ba3 {[%clk 0:01:22.9]} 26. Rd1 {[%clk 0:02:34.2]} 26... Bd6
{[%clk 0:01:23.2]} 27. Qd3 {[%clk 0:02:32.6]} 27... h6 {[%clk 0:01:18.8]} 28.
Nb1 {[%clk 0:02:26.5]} 28... e5 {[%clk 0:01:13.5]} 29. dxe5 {[%clk 0:02:24.5]}
29... Nxe5 {[%clk 0:01:14.4]} 30. Qe2 {[%clk 0:02:22]} 30... c5 {[%clk
0:00:58.9]} 31. Nbc3 {[%clk 0:02:19.9]} 31... c4 {[%clk 0:00:43.2]} 32. Rb2
{[%clk 0:02:13.6]} 32... Nd3 {[%clk 0:00:32.9]} 33. Rbb1 {[%clk 0:02:13.7]}
33... Qc6 {[%clk 0:00:19.8]} 34. bxc4 {[%clk 0:02:13.8]} 34... dxc4 {[%clk
0:00:19.6]} 35. Nb6 {[%clk 0:02:12.2]} 35... Re8 {[%clk 0:00:10.3]} 36. Nxa8
{[%clk 0:02:11.9]} 36... Qxa8 {[%clk 0:00:11]} 37. Nb5 {[%clk 0:02:11.1]} 37...
Bb8 {[%clk 0:00:07]} 38. Rxd3 {[%clk 0:02:00.9]} 38... cxd3 {[%clk 0:00:06.7]}
39. Qxd3 {[%clk 0:02:01.8]} 39... Ne4 {[%clk 0:00:05]} 40. Qd7 {[%clk
0:01:59.5]} 40... Rd8 {[%clk 0:00:03.6]} 41. Qxd8+ {[%clk 0:01:59]} 1-0

[Event "Late-Titled-Tuesday-Blitz-June-18-2024"]
[Site "Chess.com"]
[Date "2024.06.18"]
[Round "2"]
[White "Barboval"]
[Black "rionelG"]
[Result "1-0"]
[WhiteElo "2533"]
[BlackElo "2340"]
[TimeControl "180+1"]
[EndTime "14:17:29 PDT"]
[Termination "Barboval won by resignation"]

1. d4 {[%clk 0:02:38.3]} 1... Nf6 {[%clk 0:02:58.2]} 2. Bg5 {[%clk 0:02:38]}
2... g6 {[%clk 0:02:56.7]} 3. Nc3 {[%clk 0:02:37.6]} 3... d5 {[%clk 0:02:55.9]}
4. Qd2 {[%clk 0:02:37.4]} 4... Bg7 {[%clk 0:02:54.6]} 5. O-O-O {[%clk
0:02:36.5]} 5... O-O {[%clk 0:02:53.3]} 6. Bh6 {[%clk 0:02:34.7]} 6... Ne4
{[%clk 0:02:46.2]} 7. Nxe4 {[%clk 0:02:33.5]} 7... dxe4 {[%clk 0:02:47.1]} 8.
Bxg7 {[%clk 0:02:33.6]} 8... Kxg7 {[%clk 0:02:46.2]} 9. h4 {[%clk 0:02:34.2]}
9... h6 {[%clk 0:02:43]} 10. f3 {[%clk 0:02:11.8]} 10... exf3 {[%clk 0:02:40.1]}
11. gxf3 {[%clk 0:02:12.7]} 11... c5 {[%clk 0:02:39.3]} 12. dxc5 {[%clk
0:02:10.9]} 12... Qxd2+ {[%clk 0:02:38.3]} 13. Rxd2 {[%clk 0:02:11.4]} 13... Na6
{[%clk 0:02:38]} 14. c6 {[%clk 0:02:00.4]} 14... bxc6 {[%clk 0:02:34]} 15. e4
{[%clk 0:02:00.3]} 15... Nc5 {[%clk 0:02:31.6]} 16. Bc4 {[%clk 0:01:58.4]} 16...
Be6 {[%clk 0:02:23.3]} 17. Bxe6 {[%clk 0:01:57.8]} 17... Nxe6 {[%clk 0:02:24.2]}
18. Ne2 {[%clk 0:01:57.7]} 18... Rfd8 {[%clk 0:02:23]} 19. Rhd1 {[%clk
0:01:58.2]} 19... g5 {[%clk 0:02:20.6]} 20. hxg5 {[%clk 0:01:57.1]} 20... hxg5
{[%clk 0:02:20.3]} 21. Nd4 {[%clk 0:01:55.8]} 21... Nxd4 {[%clk 0:02:12.8]} 22.
Rxd4 {[%clk 0:01:56.7]} 22... Rxd4 {[%clk 0:02:11.3]} 23. Rxd4 {[%clk
0:01:57.6]} 23... Kf6 {[%clk 0:02:11.3]} 24. Rd7 {[%clk 0:01:56.6]} 24... Rh8
{[%clk 0:02:06.9]} 25. Rxa7 {[%clk 0:01:51.8]} 25... Rh3 {[%clk 0:02:06.2]} 26.
Ra3 {[%clk 0:01:51.7]} 26... Ke5 {[%clk 0:02:01]} 27. Rc3 {[%clk 0:01:51.2]}
27... Kf4 {[%clk 0:01:59.3]} 28. a4 {[%clk 0:01:48.3]} 28... Rxf3 {[%clk
0:01:54.1]} 29. Rxc6 {[%clk 0:01:36.7]} 29... g4 {[%clk 0:01:53.5]} 30. Rc8
{[%clk 0:01:35.2]} 30... g3 {[%clk 0:01:44.6]} 31. Rg8 {[%clk 0:01:35.6]} 31...
Ke3 {[%clk 0:01:33.2]} 32. b4 {[%clk 0:01:32.3]} 32... Kf2 {[%clk 0:01:30.4]}
33. b5 {[%clk 0:01:18.2]} 33... g2 {[%clk 0:01:11.3]} 34. Rxg2+ {[%clk
0:01:19.1]} 34... Kxg2 {[%clk 0:01:11.2]} 35. b6 {[%clk 0:01:20]} 35... Rf1+
{[%clk 0:00:59.5]} 36. Kb2 {[%clk 0:01:19.9]} 36... Rh1 {[%clk 0:01:00.1]} 37.
b7 {[%clk 0:01:16.3]} 37... Rh8 {[%clk 0:00:58.2]} 38. a5 {[%clk 0:01:16.3]}
38... Rb8 {[%clk 0:00:57.8]} 39. a6 {[%clk 0:01:16.7]} 39... e6 {[%clk
0:00:54.1]} 40. Kc3 {[%clk 0:01:16.8]} 40... f5 {[%clk 0:00:50.3]} 41. exf5
{[%clk 0:01:17.7]} 41... exf5 {[%clk 0:00:49.8]} 42. a7 {[%clk 0:01:18.1]} 1-0

[Event "Late-Titled-Tuesday-Blitz-June-18-2024"]
[Site "Chess.com"]
[Date "2024.06.18"]
[Round "2"]
[White "aeiiuu"]
[Black "Msb2"]
[Result "0-1"]
[WhiteElo "2640"]
[BlackElo "3072"]
[TimeControl "180+1"]
[EndTime "14:17:34 PDT"]
[Termination "Msb2 won by resignation"]

1. e4 {[%clk 0:03:00.9]} 1... e6 {[%clk 0:02:59.8]} 2. d4 {[%clk 0:03:00.7]}
2... d5 {[%clk 0:03:00.7]} 3. Nd2 {[%clk 0:03:00.6]} 3... c5 {[%clk 0:03:00]} 4.
Ngf3 {[%clk 0:03:00.3]} 4... Nf6 {[%clk 0:02:57.6]} 5. e5 {[%clk 0:03:00.2]}
5... Nfd7 {[%clk 0:02:57.5]} 6. c3 {[%clk 0:03:00.8]} 6... Nc6 {[%clk
0:02:58.3]} 7. Bd3 {[%clk 0:02:58.6]} 7... f6 {[%clk 0:02:58.9]} 8. exf6 {[%clk
0:02:58.5]} 8... Nxf6 {[%clk 0:02:59.8]} 9. O-O {[%clk 0:02:59.2]} 9... cxd4
{[%clk 0:02:59.9]} 10. cxd4 {[%clk 0:02:59.2]} 10... Bd6 {[%clk 0:03:00.6]} 11.
Re1 {[%clk 0:02:57.2]} 11... O-O {[%clk 0:03:01.3]} 12. Nb3 {[%clk 0:02:56.1]}
12... Qb6 {[%clk 0:02:57.2]} 13. Bg5 {[%clk 0:02:51.8]} 13... a5 {[%clk
0:02:56.8]} 14. Qc2 {[%clk 0:02:48.2]} 14... Nb4 {[%clk 0:02:54]} 15. Qb1 {[%clk
0:02:47]} 15... Nxd3 {[%clk 0:02:52.9]} 16. Qxd3 {[%clk 0:02:47.9]} 16... Ne4
{[%clk 0:02:53.1]} 17. Bh4 {[%clk 0:02:47.7]} 17... Bd7 {[%clk 0:02:48.8]} 18.
Rab1 {[%clk 0:02:41.6]} 18... a4 {[%clk 0:02:45.3]} 19. Nbd2 {[%clk 0:02:41.1]}
19... Bb5 {[%clk 0:02:44.1]} 20. Qc2 {[%clk 0:02:37.3]} 20... Rac8 {[%clk
0:02:38.3]} 21. Qd1 {[%clk 0:02:35.9]} 21... Bb4 {[%clk 0:02:24.4]} 22. Nxe4
{[%clk 0:02:05.7]} 22... Bxe1 {[%clk 0:02:22.2]} 23. Qxe1 {[%clk 0:01:59.5]}
23... dxe4 {[%clk 0:02:22.5]} 24. Qxe4 {[%clk 0:02:00.4]} 24... Qc6 {[%clk
0:02:23]} 25. Qe3 {[%clk 0:01:55]} 25... Qd5 {[%clk 0:02:18.3]} 26. a3 {[%clk
0:01:49]} 26... Rc2 {[%clk 0:02:15.8]} 27. h3 {[%clk 0:01:48.1]} 27... h6 {[%clk
0:02:12.3]} 28. Re1 {[%clk 0:01:46.9]} 28... Bc6 {[%clk 0:02:10.5]} 29. Be7
{[%clk 0:01:39.2]} 29... Rf5 {[%clk 0:02:05.4]} 30. Bb4 {[%clk 0:01:23.7]} 30...
Rxb2 {[%clk 0:02:01.7]} 31. Kh2 {[%clk 0:01:07.5]} 31... Kh7 {[%clk 0:01:57.7]}
32. Qd3 {[%clk 0:01:01.8]} 32... Rxf2 {[%clk 0:01:52.7]} 33. Kg1 {[%clk
0:00:51.6]} 33... Ra2 {[%clk 0:01:48.3]} 34. Re3 {[%clk 0:00:32.6]} 34... Kg8
{[%clk 0:01:40.9]} 35. Qd1 {[%clk 0:00:23.3]} 35... Rf4 {[%clk 0:01:28.4]} 36.
Re5 {[%clk 0:00:21.6]} 36... Qb3 {[%clk 0:01:23.5]} 37. Qc1 {[%clk 0:00:17.7]}
37... Rxg2+ {[%clk 0:01:22.4]} 0-1

[Event "Late-Titled-Tuesday-Blitz-June-18-2024"]
[Site "Chess.com"]
[Date "2024.06.18"]
[Round "2"]
[White "Aswathchess"]
[Black "GlavkonVVS"]
[Result "1-0"]
[WhiteElo "2767"]
[BlackElo "2537"]
[TimeControl "180+1"]
[EndTime "14:17:37 PDT"]
[Termination "Aswathchess won by resignation"]

1. e4 {[%clk 0:03:00.9]} 1... Nf6 {[%clk 0:02:59.8]} 2. e5 {[%clk 0:02:58.4]}
2... Nd5 {[%clk 0:02:59.4]} 3. c4 {[%clk 0:02:57.6]} 3... Nb6 {[%clk 0:02:58.9]}
4. d4 {[%clk 0:02:58]} 4... d6 {[%clk 0:02:59]} 5. f4 {[%clk 0:02:58.4]} 5...
dxe5 {[%clk 0:02:58.4]} 6. fxe5 {[%clk 0:02:58.1]} 6... c5 {[%clk 0:02:59]} 7.
d5 {[%clk 0:02:53.2]} 7... g6 {[%clk 0:02:58.8]} 8. Nf3 {[%clk 0:02:51.4]} 8...
Bg4 {[%clk 0:02:58.1]} 9. h3 {[%clk 0:02:47.1]} 9... Bxf3 {[%clk 0:02:57.8]} 10.
Qxf3 {[%clk 0:02:48]} 10... Bg7 {[%clk 0:02:58.3]} 11. Bf4 {[%clk 0:02:46.3]}
11... O-O {[%clk 0:02:57.5]} 12. Nd2 {[%clk 0:02:39.3]} 12... e6 {[%clk
0:02:57.6]} 13. d6 {[%clk 0:02:32.7]} 13... Nc6 {[%clk 0:02:57.3]} 14. Qg3
{[%clk 0:02:31.7]} 14... Nd7 {[%clk 0:02:51.5]} 15. Nf3 {[%clk 0:02:30.6]} 15...
Qa5+ {[%clk 0:02:48.4]} 16. Bd2 {[%clk 0:02:29.1]} 16... Qb6 {[%clk 0:02:48.4]}
17. Bc3 {[%clk 0:02:28.9]} 17... f6 {[%clk 0:02:43]} 18. O-O-O {[%clk
0:02:24.6]} 18... fxe5 {[%clk 0:02:42.3]} 19. Ng5 {[%clk 0:02:16.2]} 19... Rae8
{[%clk 0:02:30.4]} 20. h4 {[%clk 0:02:11.3]} 20... Nd4 {[%clk 0:02:19.8]} 21.
Bd3 {[%clk 0:02:06.2]} 21... Qxd6 {[%clk 0:01:58.2]} 22. Nxh7 {[%clk 0:02:03]}
22... Kxh7 {[%clk 0:01:35.2]} 23. Qxg6+ {[%clk 0:02:02]} 23... Kg8 {[%clk
0:01:35.4]} 24. Qh7+ {[%clk 0:01:58.2]} 24... Kf7 {[%clk 0:01:35.6]} 25. Bg6+
{[%clk 0:01:31.8]} 25... Ke7 {[%clk 0:01:17.8]} 26. Qxg7+ {[%clk 0:01:31.6]}
26... Kd8 {[%clk 0:01:18]} 27. Bxe8 {[%clk 0:01:31.8]} 27... Rxe8 {[%clk
0:01:15]} 28. h5 {[%clk 0:01:31.9]} 28... Qc6 {[%clk 0:00:55.1]} 29. h6 {[%clk
0:01:25.6]} 29... Qe4 {[%clk 0:00:54.6]} 30. Bxd4 {[%clk 0:01:25.3]} 30... cxd4
{[%clk 0:00:54.3]} 31. h7 {[%clk 0:01:25.3]} 31... d3 {[%clk 0:00:40.6]} 32.
h8=Q {[%clk 0:01:13.5]} 32... Qxc4+ {[%clk 0:00:40]} 33. Kb1 {[%clk 0:01:12.9]}
33... Qc2+ {[%clk 0:00:37.7]} 34. Ka1 {[%clk 0:01:12.6]} 34... Rxh8 {[%clk
0:00:24.7]} 35. Qxh8+ {[%clk 0:01:13.5]} 35... Kc7 {[%clk 0:00:24.9]} 36. Rc1
{[%clk 0:01:12.8]} 1-0

[Event "Late-Titled-Tuesday-Blitz-June-18-2024"]
[Site "Chess.com"]
[Date "2024.06.18"]
[Round "2"]
[White "ChessSwole"]
[Black "AlphaPerseii"]
[Result "1-0"]
[WhiteElo "2726"]
[BlackElo "2428"]
[TimeControl "180+1"]
[EndTime "14:17:41 PDT"]
[Termination "ChessSwole won by resignation"]

1. e4 {[%clk 0:03:00.9]} 1... c6 {[%clk 0:03:00.4]} 2. Nf3 {[%clk 0:03:00.2]}
2... d5 {[%clk 0:03:00.2]} 3. d3 {[%clk 0:03:00.8]} 3... dxe4 {[%clk 0:02:59.9]}
4. dxe4 {[%clk 0:03:01.7]} 4... Qxd1+ {[%clk 0:03:00.3]} 5. Kxd1 {[%clk
0:03:01]} 5... Nf6 {[%clk 0:03:00.8]} 6. Nbd2 {[%clk 0:03:01.2]} 6... g6 {[%clk
0:02:57.9]} 7. Ne5 {[%clk 0:02:50.8]} 7... Nbd7 {[%clk 0:02:37.7]} 8. Nd3 {[%clk
0:02:51]} 8... Bg7 {[%clk 0:02:23.9]} 9. c3 {[%clk 0:02:50.5]} 9... g5 {[%clk
0:02:01.7]} 10. f3 {[%clk 0:02:46.4]} 10... h5 {[%clk 0:02:01.9]} 11. a4 {[%clk
0:02:44.6]} 11... a5 {[%clk 0:02:01.6]} 12. Kc2 {[%clk 0:02:43.9]} 12... h4
{[%clk 0:01:46.8]} 13. Nc4 {[%clk 0:02:43.9]} 13... g4 {[%clk 0:01:40.6]} 14.
Be3 {[%clk 0:02:38.4]} 14... Bh6 {[%clk 0:01:30.6]} 15. Bd4 {[%clk 0:02:32.8]}
15... Rg8 {[%clk 0:01:26.3]} 16. h3 {[%clk 0:02:28]} 16... gxf3 {[%clk
0:01:25.2]} 17. gxf3 {[%clk 0:02:25.9]} 17... Nh5 {[%clk 0:01:23.1]} 18. Rg1
{[%clk 0:02:09.7]} 18... Rxg1 {[%clk 0:01:19.7]} 19. Bxg1 {[%clk 0:02:10.6]}
19... Ng3 {[%clk 0:01:05.5]} 20. Bf2 {[%clk 0:02:10.6]} 20... Nf6 {[%clk
0:00:58.8]} 21. Nb6 {[%clk 0:02:04.3]} 21... Rb8 {[%clk 0:00:59.2]} 22. Nc5
{[%clk 0:02:04.3]} 22... Nd7 {[%clk 0:00:45.9]} 23. Nxc8 {[%clk 0:01:49.7]}
23... Nxc5 {[%clk 0:00:46]} 24. Nxe7 {[%clk 0:01:49.4]} 24... Ncxe4 {[%clk
0:00:41.9]} 25. Nxc6 {[%clk 0:01:42.1]} 25... bxc6 {[%clk 0:00:39.9]} 26. fxe4
{[%clk 0:01:42.4]} 26... Ke7 {[%clk 0:00:15.4]} 27. Rd1 {[%clk 0:01:26.6]} 27...
Ke6 {[%clk 0:00:09.3]} 28. Bc4+ {[%clk 0:01:13.6]} 28... Ke5 {[%clk 0:00:09.7]}
29. Re1 {[%clk 0:01:14.2]} 29... Rf8 {[%clk 0:00:06.9]} 30. Bd4+ {[%clk
0:01:12.4]} 30... Kf4 {[%clk 0:00:06.3]} 31. Be3+ {[%clk 0:01:12.4]} 1-0

[Event "Late-Titled-Tuesday-Blitz-June-18-2024"]
[Site "Chess.com"]
[Date "2024.06.18"]
[Round "2"]
[White "Navyblue1"]
[Black "VinzentSpitzl"]
[Result "0-1"]
[WhiteElo "2181"]
[BlackElo "2480"]
[TimeControl "180+1"]
[EndTime "14:17:41 PDT"]
[Termination "VinzentSpitzl won on time"]

1. d4 {[%clk 0:02:53.1]} 1... d5 {[%clk 0:02:59.8]} 2. c4 {[%clk 0:02:42.2]}
2... e6 {[%clk 0:02:59.8]} 3. Nc3 {[%clk 0:02:41.5]} 3... Nf6 {[%clk 0:03:00]}
4. cxd5 {[%clk 0:02:40.5]} 4... exd5 {[%clk 0:03:00.1]} 5. Bg5 {[%clk
0:02:40.7]} 5... Be7 {[%clk 0:03:00.4]} 6. e3 {[%clk 0:02:40.7]} 6... h6 {[%clk
0:03:00.9]} 7. Bh4 {[%clk 0:02:36.1]} 7... c6 {[%clk 0:02:59.5]} 8. Bd3 {[%clk
0:02:34.7]} 8... O-O {[%clk 0:02:59.5]} 9. Nge2 {[%clk 0:02:33.3]} 9... Re8
{[%clk 0:02:58.1]} 10. O-O {[%clk 0:02:32.2]} 10... Ne4 {[%clk 0:02:57.5]} 11.
Bxe7 {[%clk 0:02:30]} 11... Qxe7 {[%clk 0:02:57.6]} 12. Qc2 {[%clk 0:02:28.9]}
12... Bf5 {[%clk 0:02:53.3]} 13. Rae1 {[%clk 0:02:25.2]} 13... Nd7 {[%clk
0:02:49.2]} 14. f3 {[%clk 0:02:16.2]} 14... Nxc3 {[%clk 0:02:48.3]} 15. Nxc3
{[%clk 0:02:17.1]} 15... Bxd3 {[%clk 0:02:47.9]} 16. Qxd3 {[%clk 0:02:14.5]}
16... Nf6 {[%clk 0:02:46.9]} 17. e4 {[%clk 0:01:40.3]} 17... dxe4 {[%clk
0:02:46.7]} 18. fxe4 {[%clk 0:01:40]} 18... Rad8 {[%clk 0:02:46.6]} 19. e5
{[%clk 0:01:26.5]} 19... Nd5 {[%clk 0:02:46.1]} 20. Qf5 {[%clk 0:00:52.9]} 20...
Qe6 {[%clk 0:02:31.1]} 21. Qxe6 {[%clk 0:00:34.7]} 21... Rxe6 {[%clk 0:02:29.6]}
22. a3 {[%clk 0:00:31.2]} 22... Nxc3 {[%clk 0:02:26.6]} 23. bxc3 {[%clk
0:00:29.1]} 23... c5 {[%clk 0:02:27.1]} 24. Re4 {[%clk 0:00:25.2]} 24... Ra6
{[%clk 0:02:21.8]} 25. dxc5 {[%clk 0:00:15.8]} 25... Rxa3 {[%clk 0:02:16.6]} 26.
Rb4 {[%clk 0:00:15.2]} 26... Rd7 {[%clk 0:02:13.2]} 27. Rc4 {[%clk 0:00:14.2]}
27... Re7 {[%clk 0:02:04.5]} 28. c6 {[%clk 0:00:10]} 28... bxc6 {[%clk
0:02:04.2]} 29. Rxc6 {[%clk 0:00:10.9]} 29... Rxe5 {[%clk 0:01:50.8]} 30. Rc8+
{[%clk 0:00:09.5]} 30... Kh7 {[%clk 0:01:48]} 31. Rxf7 {[%clk 0:00:09.4]} 31...
Ra2 {[%clk 0:01:48.4]} 32. h3 {[%clk 0:00:06.5]} 32... Ree2 {[%clk 0:01:44.8]}
33. Rcc7 {[%clk 0:00:06.3]} 33... Rxg2+ {[%clk 0:01:44.7]} 34. Kf1 {[%clk
0:00:07]} 34... a5 {[%clk 0:01:40.4]} 35. Ra7 {[%clk 0:00:06.1]} 35... a4 {[%clk
0:01:40.3]} 36. Rxa4 {[%clk 0:00:04.7]} 36... Rac2 {[%clk 0:01:34.8]} 37. Rc4
{[%clk 0:00:03.4]} 37... Rh2 {[%clk 0:01:35]} 38. Kg1 {[%clk 0:00:01.5]} 38...
Rxh3 {[%clk 0:01:35]} 0-1